Cogmind - Beta 15 @@@ ROGUE MODE // 2025.05.07 @ 22:21:47 Player: ywiktor Result: Destroyed by S-43 Plague with Heavy Machine Gun Performance ------------- Evolutions (8) 4000 Regions Visited (14) 2800 Robots Destroyed (122) 610 Value Destroyed (5849) 5849 Prototype IDs (19) 380 Alien Tech Used (2) 400 Bonus (591) 591 TOTAL SCORE: 14630 Bonus ------- Follower Combat Kills 291 Met Zhirov 300 Cogmind --------- Core Integrity 0/1450 Matter 300/300 Energy 190/190 System Corruption 15% Temperature Cool (0) Movement Hovering (120) Ox1 Location -2/Research Parts ------- > --- POWER (2) -------- Light Quantum Reactor > --- PROPULSION (6) --- Improved Antigrav System > --- UTILITY (13) ----- Improved Targeting Computer Advanced Target Analyzer Advanced Target Analyzer Advanced Hacking Suite > --- WEAPON (2) ------- Force Lance > --- INVENTORY (5) ---- Micro Antimatter Reactor Medium Treads Centrium Leg Hacking Suite Nova Cannon Peak State ------------ > --- POWER ------------ Antimatter Reactor Light Antimatter Reactor > --- PROPULSION ------- Advanced Medium Treads Advanced Medium Treads Advanced Medium Treads Biometal Medium Treads > --- UTILITY ---------- Advanced Heat Sink Enhanced Optical Array Advanced Sensor Array Improved Targeting Computer Target Analyzer Target Analyzer Improved Target Analyzer Advanced Target Analyzer Improved Particle Charger Improved Medium Armor Plating Advanced Thermal Shield Improved Hacking Suite Advanced Hacking Suite > --- WEAPON ----------- Heavy Disruptor Cannon > --- INVENTORY -------- Micro Fission Core Light Antimatter Reactor Medium Treads Medium Treads Heavy Phase Cannon [Rating: 121] Favorites ----------- Power Micro Nuclear Core Engine Improved Deuterium Engine Power Core Micro Nuclear Core Reactor Light Antimatter Reactor Propulsion Aluminum Leg Treads Medium Treads Leg Aluminum Leg Hover Unit Improved Antigrav System Flight Unit Impulse Thruster Utility Target Analyzer Device Improved Cooling System Storage Large Storage Unit Processor Target Analyzer Hackware Advanced Hacking Suite Protection Improved Light Armor Plating Weapon Cooled Particle Cannon Energy Gun Heavy Particle Gun Energy Cannon Cooled Particle Cannon Ballistic Gun Hypervelocity Gauss Rifle Ballistic Cannon Hardcell Cannon Piercing Weapon Force Lance Special Melee Weapon Advanced Datajack Build | -11 -10 -9 -8 -7 -6 -6 -5 -5 -5 -5 -4 -4 -3 -2 ------- Run | Yrd Mat Mat Mat Fac Fac Ext Fac Upp Upp Zhi Pro Fac Res Res Slots Evolved 16 | . . 2 2 2 2 . 2 . . . . 2 2 2 Power 1 | . . . . . 1 . . . . . . . . . Propulsion 4 | . . 1 1 . . . . . . . . . . 2 Utility 11 | . . 1 1 2 1 . 2 . . . . 2 2 . Weapon . | . . . . . . . . . . . . . . . Parts Attached 154 | 5 5 9 22 9 22 16 5 1 3 1 8 16 14 18 Power 19 | 1 1 1 3 . 6 1 . . . 1 . 2 1 2 Engine 5 | 1 1 1 1 . . 1 . . . . . . . . Core 8 | . . . 2 . 6 . . . . . . . . . Reactor 6 | . . . . . . . . . . 1 . 2 1 2 Propulsion 49 | 1 2 2 10 3 5 5 1 1 . . 1 6 3 9 Treads 12 | . . . . 3 4 . . . . . . 4 1 . Leg 25 | 1 2 2 10 . 1 5 1 1 . . 1 . . 1 Wheel . | . . . . . . . . . . . . . . . Hover 11 | . . . . . . . . . . . . 1 2 8 Flight 1 | . . . . . . . . . . . . 1 . . Utility 53 | 1 1 2 4 4 9 7 4 . 1 . 4 5 8 3 Device 19 | . . . 1 2 3 1 2 . 1 . 1 2 4 2 Storage 4 | 1 1 . 1 . . . . . . . . 1 . . Processor 12 | . . 1 1 . . 1 2 . . . 2 1 3 1 Hackware 3 | . . . . 1 . . . . . . 1 . 1 . Protection 15 | . . 1 1 1 6 5 . . . . . 1 . . Artifact . | . . . . . . . . . . . . . . . Weapon 33 | 2 1 4 5 2 2 3 . . 2 . 3 3 2 4 Energy Gun 4 | . . 1 1 . . . . . . . 2 . . . Energy Cannon 8 | . . . 1 2 2 1 . . . . . . 2 . Ballistic Gun 14 | 2 . 3 3 . . 2 . . 2 . 1 1 . . Ballistic Cannon 1 | . . . . . . . . . . . . 1 . . Launcher . | . . . . . . . . . . . . . . . Special Weapon . | . . . . . . . . . . . . . . . Impact Weapon . | . . . . . . . . . . . . . . . Slashing Weapon . | . . . . . . . . . . . . . . . Piercing Weapon 3 | . . . . . . . . . . . . . . 3 Special Melee Weapon 3 | . 1 . . . . . . . . . . 1 . 1 Unidentified Prototypes 10 | . . 2 2 . 3 . . . . 2 1 . . . Corrupted Parts 1 | . . . . . . . . . . . . 1 . . System Corruption 4 | . . . . . . . . . . . . 4 . . Parts Lost 83 | . . . 3 3 7 12 . . 3 . 21 1 17 16 Power 7 | . . . . . 2 1 . . . . 1 . 2 1 Propulsion 29 | . . . 1 1 2 4 . . . . 8 . 6 7 Utility 33 | . . . 1 2 3 5 . . 1 . 7 1 7 6 Weapon 14 | . . . 1 . . 2 . . 2 . 5 . 2 2 Highest Loss Streak 10 | . . . 2 2 2 10 . . 3 . 10 1 5 6 To Critical Strikes 4 | . . . . . 1 . . . . . 3 . . . Average Backups 11 | 1 5 9 14 14 14 14 14 15 14 14 11 3 4 4 Power 1 | . 1 1 1 1 1 1 2 2 2 1 1 . 1 . Propulsion 2 | . 1 2 5 3 2 2 2 3 3 3 1 1 1 1 Utility 4 | . . 2 3 4 6 6 6 7 6 6 6 . . 1 Weapon 2 | . 1 2 3 4 3 3 2 3 2 2 1 1 1 1 Tool/Special . | . . . . . . . . . . . . . . . Unused Backups 39 | . . 4 4 3 4 2 3 2 1 3 4 2 3 4 Power 7 | . . 1 1 . . . 1 . . 1 1 . 1 1 Propulsion 6 | . . . . . . 1 1 1 . . . . 2 1 Utility 13 | . . 1 3 . . . . 1 1 1 3 2 . 1 Weapon 13 | . . 2 . 3 4 1 1 . . 1 . . . 1 Tool/Special . | . . . . . . . . . . . . . . . Average Slot Usage (%) 89 | . 81 92 90 88 93 98 99 100 99 99 73 85 85 41 Engine 2 | . 14 11 . . . 1 5 5 5 3 . . . . Core 6 | . . . 8 7 11 10 5 5 5 5 3 . . . Reactor 1 | . . . . . . . . . . 1 4 8 6 2 Treads 10 | . . . . 6 25 17 . . . . . 17 15 . Leg 13 | . 16 28 35 23 . 8 23 23 23 23 15 . . . Device 7 | . . . . 4 7 8 17 17 15 11 6 11 12 2 Storage 6 | . 21 14 9 7 6 6 5 5 5 5 4 4 . . Processor 13 | . . 8 9 7 6 8 22 23 23 23 22 23 30 19 Hackware 1 | . . . . 6 . . . . . . . 5 8 4 Protection 10 | . . 7 9 6 19 20 5 5 6 10 2 3 3 . Energy Cannon 5 | . . . . 14 12 8 . . . . . . 2 . Ballistic Gun 7 | . 27 21 16 . . 4 11 11 10 11 8 4 1 . Peak Build Rating 121 | 5 8 15 29 44 59 62 74 75 76 83 83 99 121 83 Average Rating 55 | 4 5 11 24 38 53 59 70 74 75 78 59 85 101 56 On Entrance 45 | . 5 8 15 29 44 59 62 74 74 76 83 21 95 33 Naked Turns . | . . . . . . . . . . . . . . . Heaviest Build 64 | 10 22 26 55 64 62 63 56 56 56 63 63 57 60 29 Greatest Support 125 | 10 20 30 40 84 114 110 83 83 79 79 79 120 125 48 Greatest Overweight (x) 6 | 2 1 1 1 1 1 4 . . . . 6 . 4 3 Average Overweight (x) . | . . . . . . . . . . . . . . . Largest Inventory Capacity 15 | 8 10 10 15 15 15 15 15 15 15 15 15 5 5 5 Average Capacity 12 | 7 9 10 14 15 15 15 15 15 15 15 13 5 5 5 Most Carried 15 | 2 10 10 15 15 15 15 15 15 15 15 15 5 5 5 Average Carried 11 | 1 5 9 14 14 14 14 14 14 14 14 11 4 4 4 Final Capacity 15 | 8 10 10 15 15 15 15 15 15 15 15 5 5 5 5 Final Carried 15 | 2 10 10 15 15 15 15 15 15 14 15 5 5 4 5 Class Distribution -------------------- 80% | Scavenger-Mutant 17% | Mutant Dominant Class ---------------- Mutant | -10/Materials Scavenger-Mutant | -9/Materials Scavenger-Mutant | -8/Materials Scavenger-Mutant | -7/Factory Scavenger-Mutant | -6/Factory Scavenger-Mutant | -6/Extension Scavenger-Mutant | -5/Factory Scavenger-Mutant | -5/Upper Caves Scavenger-Mutant | -5/Upper Caves Scavenger-Mutant | -5/Zhirov Scavenger-Mutant | -4/Proximity Caves Scavenger-Mutant | -4/Factory Scavenger-Mutant | -3/Research Scavenger-Mutant | -2/Research Resources | -11 -10 -9 -8 -7 -6 -6 -5 -5 -5 -5 -4 -4 -3 -2 ----------- Run | Yrd Mat Mat Mat Fac Fac Ext Fac Upp Upp Zhi Pro Fac Res Res Matter Collected 3477 | 242 118 132 656 306 231 451 . 89 103 . 307 481 165 196 Remotely . | . . . . . . . . . . . . . . . Salvage Created 5806 | . 208 203 1002 470 1248 770 . 70 70 . 291 344 714 416 Parts 310 | . 12 14 52 27 71 34 . 4 5 . 16 16 27 32 Haulers Intercepted . | . . . . . . . . . . . . . . . Recyclers Shooed 6 | . . 1 1 . 2 1 . . . . . . 1 . Parts Field Recycled . | . . . . . . . . . . . . . . . Retrieved Matter . | . . . . . . . . . . . . . . . Parts Self-Destructed 19 | . . . . . . . . 4 5 . 10 . . . Prevented 2 | . . . . . . . . . . . 2 . . . Kills | -11 -10 -9 -8 -7 -6 -6 -5 -5 -5 -5 -4 -4 -3 -2 ------- Run | Yrd Mat Mat Mat Fac Fac Ext Fac Upp Upp Zhi Pro Fac Res Res Combat Hostiles Destroyed 107 | . 5 4 18 8 26 14 . 1 1 . 7 7 9 7 Melee 7 | . . . . . . . . . . . . . . 7 Guns 43 | . 5 4 18 . . 5 . 1 1 . 7 2 . . Cannons 52 | . . . . 8 24 9 . . . . . 4 7 . AOE 1 | . . . . . 1 . . . . . . . . . Classes Destroyed 13 | . 2 1 4 1 3 1 . . . . . . 1 . Worker 6 | . . . 1 . 1 . . . . . . 4 . . Builder 2 | . . . 1 . 1 . . . . . . . . . Operator 5 | . 1 . 1 1 2 . . . . . . . . . Watcher 2 | . . . . . 1 1 . . . . . . . . Swarmer 21 | . . . . . 11 4 . . . . 4 . . 2 Grunt 35 | . 5 1 10 4 4 4 . . . . . 4 3 . Brawler 4 | . . . 2 1 . . . . . . . . 1 . Duelist 1 | . . . . . 1 . . . . . . . . . Sentry 18 | . . 3 5 1 5 2 . . . . . 1 . 1 Specialist 2 | . . . . . . . . . . . . . 2 . Hunter 10 | . . . 1 . 2 2 . 1 1 . 3 . . . Programmer 15 | . . . . 2 3 1 . . . . . 2 3 4 Behemoth 1 | . . . . . . 1 . . . . . . . . Best Kill Streak 4 | . 3 1 4 3 4 3 . 1 1 . 3 4 4 3 Combat Bots Only 4 | . 3 1 3 3 4 3 . 1 1 . 3 4 4 3 Max Kills in Single Turn 2 | . 1 1 2 2 2 1 . 1 1 . 1 1 1 1 Gunslinging . | . . . . . . . . . . . . . . . Exploded 1 | . . . . . 1 . . . . . . . . . Melee 1 | . . . . . . . . . . . . . . 1 Uniques/NPCs Destroyed . | . . . . . . . . . . . . . . . Combat | -11 -10 -9 -8 -7 -6 -6 -5 -5 -5 -5 -4 -4 -3 -2 -------- Run | Yrd Mat Mat Mat Fac Fac Ext Fac Upp Upp Zhi Pro Fac Res Res Hostile Shots Fired 1428 | . 20 18 134 81 267 214 . 3 26 . 284 59 194 128 Missed 495 | . 7 7 26 42 109 66 . . 7 . 114 15 73 29 Hits 933 | . 13 11 108 39 158 148 . 3 19 . 170 44 121 99 Melee 7 | . . . 2 2 . . . . . . . . 3 . Projectile 926 | . 13 11 106 37 158 148 . 3 19 . 170 44 118 99 AOE 2 | . . . . 1 . . . . . . . . 1 . Critical Strikes 35 | . . 2 6 1 4 3 . . . . 9 . 4 6 Actively Blocked 2 | . . . . . 1 1 . . . . . . . . Part Disruptions 2 | . . . . . . . . . . . . . 2 . Damage Taken 15901 | . 143 161 1690 574 1919 2214 . 59 340 . 2758 938 2761 2344 Core 3695 | . . 18 141 73 151 189 . . 18 . 632 109 913 1451 Absorbed by Shields . | . . . . . . . . . . . . . . . Redirected to Shielding 135 | . . . . . 85 50 . . . . . . . . Ignored by Resistances 194 | . . . . . . . . . . . . . 194 . Core Remaining (%) 74 | 100 100 95 74 89 . 60 . . . . 30 90 29 . Volleys Fired 391 | . 25 17 81 17 70 65 . 2 10 . 35 25 44 . Largest 2 | . 2 2 2 2 2 2 . 2 2 . 2 2 1 . Hottest 195 | . 40 43 78 60 65 195 . 66 66 . 130 80 110 . Shots Fired 710 | . 50 34 158 34 133 122 . 4 16 . 65 50 44 . Gun 395 | . 50 34 158 . . 42 . 4 16 . 65 26 . . Cannon 315 | . . . . 34 133 80 . . . . . 24 44 . Launcher . | . . . . . . . . . . . . . . . Special . | . . . . . . . . . . . . . . . Kinetic 400 | . 50 34 143 . . 42 . 4 16 . 58 50 3 . Thermal 278 | . . . 15 34 133 70 . . . . . . 26 . Explosive . | . . . . . . . . . . . . . . . Electromagnetic 32 | . . . . . . 10 . . . . 7 . 15 . Robot Hit Streak 20 | . 5 7 19 20 19 15 . 18 6 . 8 17 8 . Robot Miss Streak 5 | . 3 2 3 3 3 5 . . 1 . 5 3 3 . Penetration Max 2 | . . . . . . 2 . . . . . . . . Secondary Targets 2 | . . . 1 . . . . . . . 1 . . . Max Gunslinging Chain 1 | . . . 1 . . . . . . . 1 . . . Shots Hit Robots 498 | . 29 23 119 23 91 71 . 3 12 . 33 41 31 22 Core Hits 218 | . 14 10 49 12 44 31 . 1 4 . 10 21 12 10 Critical Kills 13 | . . . . . 1 6 . 1 1 . 3 1 . . Critical Parts Destroyed 17 | . 1 . . . . 7 . 1 4 . 2 2 . . Critical Strikes 35 | . 1 . 1 . 1 13 . 2 5 . 5 4 . 3 Burn 1 | . . . 1 . . . . . . . . . . . Meltdown 1 | . . . . . 1 . . . . . . . . . Destroy 29 | . 1 . . . . 13 . 2 5 . 5 3 . . Blast 1 | . . . . . . . . . . . . 1 . . Impale 3 | . . . . . . . . . . . . . . 3 Melee Attacks 35 | . . . . . . . . . . . . 1 . 34 Impact . | . . . . . . . . . . . . . . . Slashing . | . . . . . . . . . . . . . . . Piercing 34 | . . . . . . . . . . . . . . 34 Sneak Attacks 1 | . . . . . . . . . . . . 1 . . Combat Hostiles . | . . . . . . . . . . . . . . . Follow-up Attacks 3 | . . . . . . . . . . . . . . 3 Damage Inflicted 12280 | . 225 209 1859 749 2860 1913 . 14 64 . 634 1354 1452 947 Guns 3754 | . 225 209 1859 . . 209 . 14 64 . 634 540 . . Cannons 7472 | . . . . 749 2753 1704 . . . . . 814 1452 . Explosions 107 | . . . . . 107 . . . . . . . . . Melee 947 | . . . . . . . . . . . . . . 947 Ramming . | . . . . . . . . . . . . . . . Kinetic 4375 | . 225 209 1610 . . 209 . 14 64 . 579 1354 111 . Thermal 6194 | . . . 249 749 2753 1592 . . . . . . 851 . Explosive 107 | . . . . . 107 . . . . . . . . . Electromagnetic 657 | . . . . . . 112 . . . . 55 . 490 . Impact . | . . . . . . . . . . . . . . . Slashing . | . . . . . . . . . . . . . . . Piercing 947 | . . . . . . . . . . . . . . 947 Highest Corruption 15 | . . . 4 1 . 1 . . . . . 5 14 15 Average Corruption 3 | . . . 4 1 . 1 . . . . . 4 7 12 Corruption Purged . | . . . . . . . . . . . . . . . Corruption Blocked . | . . . . . . . . . . . . . . . Effects 46 | . . . 11 6 . 1 . . . . . 12 10 6 Message Errors 8 | . . . 5 1 . . . . . . . 2 . . Matter Fused 12 | . . . 1 2 . . . . . . . 3 4 2 Heat Flow Errors 8 | . . . 1 1 . 1 . . . . . 1 3 1 Energy Discharges 2 | . . . 1 . . . . . . . . 1 . . Parts Rejected 2 | . . . . 1 . . . . . . . . 1 . Data Loss (minor) 5 | . . . . . . . . . . . . 1 2 2 Data Loss (major) 3 | . . . 1 1 . . . . . . . . . 1 Misfires 2 | . . . . . . . . . . . . 2 . . Weapon Failures 4 | . . . 2 . . . . . . . . 2 . . Overload Shots 13 | . . . . . . 13 . . . . . . . . Overflow Damage 250 | . . . . . 49 39 . . . . . 13 39 110 Projectiles 140 | . . . . . 49 39 . . . . . 13 39 . Explosions . | . . . . . . . . . . . . . . . Melee 110 | . . . . . . . . . . . . . . 110 Knockbacks 3 | . . . . . . . . . . . . 3 . . Impact . | . . . . . . . . . . . . . . . Kinetic 3 | . . . . . . . . . . . . 3 . . Secondary . | . . . . . . . . . . . . . . . Self-Inflicted Damage 50 | . . . . . 50 . . . . . . . . . Shots 1 | . . . . . 1 . . . . . . . . . Rammed 1 | . . . . . . . . . . . . . 1 . Targets Rammed 1 | . . . . . . . . . . . . . 1 . Kicked . | . . . . . . . . . . . . . . . Crushed . | . . . . . . . . . . . . . . . Highest Temperature 363 | . 12 29 363 227 16 133 . . . . . 227 201 87 Average Temperature 63 | . 7 8 77 39 16 22 . . . . . 139 69 52 Received Heat Transfer 2271 | . 78 87 855 111 426 129 . . . . 9 210 330 36 Effects 2 | . . . 1 1 . . . . . . . . . . Energy Bleed 1 | . . . . 1 . . . . . . . . . . Matter Decay 1 | . . . 1 . . . . . . . . . . . Siege Activations . | . . . . . . . . . . . . . . . Martial Activations . | . . . . . . . . . . . . . . . Shielding Activations . | . . . . . . . . . . . . . . . Robots Disrupted . | . . . . . . . . . . . . . . . Combat Hostiles . | . . . . . . . . . . . . . . . Robots Corrupted 3 | . . . . . . . . . . . . 1 2 . Combat Hostiles 3 | . . . . . . . . . . . . 1 2 . Parts Fried 2 | . . . . . . . . . . . . . 2 . Impact Corruptions 1 | . . . . . . . . . . . . 1 . . Robots Melted 1 | . . . . . 1 . . . . . . . . . Combat Hostiles 1 | . . . . . 1 . . . . . . . . . Parts Melted 22 | . . . 2 1 13 2 . . . . . . 4 . Heat Transferred 8088 | . . . 555 888 3771 2134 . . . . . . 740 . Parts Sabotaged . | . . . . . . . . . . . . . . . Parts Stolen . | . . . . . . . . . . . . . . . Parts Stripped . | . . . . . . . . . . . . . . . Power Chain Reactions . | . . . . . . . . . . . . . . . Alert | -11 -10 -9 -8 -7 -6 -6 -5 -5 -5 -5 -4 -4 -3 -2 ------- Run | Yrd Mat Mat Mat Fac Fac Ext Fac Upp Upp Zhi Pro Fac Res Res Maximum Alert Level 1 | . . . . . 1 1 . . . . . . . . Low Security (%) 85 | 100 100 100 100 100 65 57 100 . . . . 100 100 100 Level 1 14 | . . . . . 34 42 . . . . . . . . Level 2 . | . . . . . . . . . . . . . . . Level 3 . | . . . . . . . . . . . . . . . Level 4 . | . . . . . . . . . . . . . . . Level 5 . | . . . . . . . . . . . . . . . High Security . | . . . . . . . . . . . . . . . Max Security . | . . . . . . . . . . . . . . . Peak Influence 322 | . 100 35 101 75 322 316 98 . . . . 98 84 40 Initial 156 | . . 35 . 39 8 156 98 . . . . 13 . 20 Average 68 | . 18 10 46 21 107 179 18 . . . . 34 16 11 Influence Increases 4112 | . 165 117 542 254 868 992 . 30 120 . 275 215 354 180 Destroy 0b10 Robot/C 2300 | . 100 80 360 160 520 440 . 20 20 . 140 140 180 140 Destroy 0b10 Robot/NC 80 | . 5 . 15 5 25 10 . . . . . 20 . . Destroy Leader 556 | . 30 30 100 50 132 54 . 10 10 . 30 30 40 40 Allied During Kill 168 | . . . . . . 168 . . . . . . . . Successful Hack 57 | . . 6 18 . 12 21 . . . . . . . . Select Force Hacks 30 | . 30 . . . . . . . . . . . . . Disable Machine 240 | . . . . 15 75 135 . . . . . 15 . . Destroy Structure 126 | . . 1 4 9 59 29 . . . . . 10 14 . Partial Spotted 15 | . . . . . . . . . . . . . 15 . Lose Combat Pursuer 540 | . . . 45 15 45 135 . . 90 . 105 . 105 . Influence Decreases 4112 | . 81 201 454 324 566 1110 202 30 120 . 253 237 318 216 Entered New Map 401 | . . 49 . 49 10 164 104 . . . . 9 . 16 Time Decay 2799 | . 81 152 424 265 486 526 98 30 120 . 113 208 196 100 Lost Part 592 | . . . 30 10 70 120 . . . . 140 . 122 100 Lost Ally 320 | . . . . . . 300 . . . . . 20 . . Squads Dispatched 21 | . 3 . 3 1 3 1 1 . . . . 2 6 1 Investigation 3 | . 2 . 1 . . . . . . . . . . . Extermination 11 | . . . . 1 3 . 1 . . . . 2 3 1 Reinforcement 6 | . 1 . 1 . . 1 . . . . . . 3 . Assault . | . . . . . . . . . . . . . . . Garrison 1 | . . . 1 . . . . . . . . . . . Intercept . | . . . . . . . . . . . . . . . Searches Triggered . | . . . . . . . . . . . . . . . Construction Impeded . | . . . . . . . . . . . . . . . Haulers Reinforced . | . . . . . . . . . . . . . . . Active Scanning Responses . | . . . . . . . . . . . . . . . Cargo Convoy Interrupts . | . . . . . . . . . . . . . . . Stealth | -11 -10 -9 -8 -7 -6 -6 -5 -5 -5 -5 -4 -4 -3 -2 --------- Run | Yrd Mat Mat Mat Fac Fac Ext Fac Upp Upp Zhi Pro Fac Res Res Distress Signals 14 | . . 1 3 1 3 2 . . . . . 1 3 . Communications Jammed . | . . . . . . . . . . . . . . . Distress Signals . | . . . . . . . . . . . . . . . Times Spotted 205 | . 6 5 34 12 43 27 . 1 5 . 16 8 39 9 Peak Tracking Total 12 | . 3 2 4 3 7 7 . 1 3 . 5 4 12 4 Tactical Retreats 23 | . . . 3 1 2 7 . . 3 . 4 . 3 . Traps | -11 -10 -9 -8 -7 -6 -6 -5 -5 -5 -5 -4 -4 -3 -2 ------- Run | Yrd Mat Mat Mat Fac Fac Ext Fac Upp Upp Zhi Pro Fac Res Res Traps Triggered 2 | . 1 . 1 . . . . . . . . . . . Indirectly . | . . . . . . . . . . . . . . . Trap Hack Attempts . | . . . . . . . . . . . . . . . Triggered . | . . . . . . . . . . . . . . . Disarmed . | . . . . . . . . . . . . . . . Reprogrammed . | . . . . . . . . . . . . . . . Reused . | . . . . . . . . . . . . . . . Traps Extracted . | . . . . . . . . . . . . . . . Installed . | . . . . . . . . . . . . . . . Triggered . | . . . . . . . . . . . . . . . Machines | -11 -10 -9 -8 -7 -6 -6 -5 -5 -5 -5 -4 -4 -3 -2 ---------- Run | Yrd Mat Mat Mat Fac Fac Ext Fac Upp Upp Zhi Pro Fac Res Res Machines Disabled 16 | . . . . 1 5 9 . . . . . 1 . . Max in Single Turn 2 | . . . . 1 2 1 . . . . . 1 . . Energy Cycler 1 | . . . . . . 1 . . . . . . . . Machines Repaired . | . . . . . . . . . . . . . . . Machines Dismantled . | . . . . . . . . . . . . . . . Machines Sabotaged . | . . . . . . . . . . . . . . . Overloaded Fab Kills . | . . . . . . . . . . . . . . . Hacking | -11 -10 -9 -8 -7 -6 -6 -5 -5 -5 -5 -4 -4 -3 -2 --------- Run | Yrd Mat Mat Mat Fac Fac Ext Fac Upp Upp Zhi Pro Fac Res Res Machines Accessed 39 | . 2 2 5 1 9 10 1 . . 3 . 2 4 . Terminals 30 | . 1 2 5 . 7 10 . . . . . 1 4 . Fabricators 3 | . . . . 1 1 . . . . . . 1 . . Repair Stations . | . . . . . . . . . . . . . . . Recycling Units 2 | . 1 . . . 1 . . . . . . . . . Scanalyzers . | . . . . . . . . . . . . . . . Garrison Access 1 | . . . . . . . 1 . . . . . . . Total Hacks 80 | . 5 6 10 2 16 18 1 . . 12 . 5 5 . Successful 37 | . 1 3 4 1 8 5 . . . 12 . 2 1 . Failed 43 | . 4 3 6 1 8 13 1 . . . . 3 4 . Catastrophic 14 | . . . 3 1 2 4 1 . . . . 1 2 . Database Lockouts . | . . . . . . . . . . . . . . . Manual 20 | . 5 3 4 1 2 1 . . . . . 2 2 . Terminals 59 | . 4 6 10 . 13 18 . . . . . 3 5 . Fabricators 6 | . . . . 2 2 . . . . . . 2 . . Repair Stations . | . . . . . . . . . . . . . . . Recycling Units 2 | . 1 . . . 1 . . . . . . . . . Scanalyzers . | . . . . . . . . . . . . . . . Garrison Access 1 | . . . . . . . 1 . . . . . . . Terminal Hacks 30 | . . 2 3 . 6 5 . . . 12 . 1 1 . Record 2 | . . . . . 1 . . . . . . 1 . . Part Schematic 4 | . . . . . . . . . . 4 . . . . Robot Analysis 4 | . . . . . . . . . . 4 . . . . Prototype ID Bank 4 | . . . . . . . . . . 4 . . . . Open Door 6 | . . . . . 1 5 . . . . . . . . Branch Access Points 1 | . . . . . 1 . . . . . . . . . Alert Level 2 | . . 1 . . 1 . . . . . . . . . Locate Traps 2 | . . . 1 . . . . . . . . . 1 . Dispatch Records 1 | . . . 1 . . . . . . . . . . . Reinforcement Status 1 | . . . . . 1 . . . . . . . . . Recall Reinforcements 1 | . . . 1 . . . . . . . . . . . Zone Layout 2 | . . 1 . . 1 . . . . . . . . . Fabricator Hacks 3 | . . . . 1 1 . . . . . . 1 . . Network Status 3 | . . . . 1 1 . . . . . . 1 . . Repair Station Hacks . | . . . . . . . . . . . . . . . Recycling Unit Hacks 1 | . . . . . 1 . . . . . . . . . Retrieve Components 1 | . . . . . 1 . . . . . . . . . Scanalyzer . | . . . . . . . . . . . . . . . Garrison Access Hacks . | . . . . . . . . . . . . . . . Unauthorized Hacks 3 | . 1 1 1 . . . . . . . . . . . Terminals 2 | . . 1 1 . . . . . . . . . . . Track 1 | . . . 1 . . . . . . . . . . . Operators 1 | . . 1 . . . . . . . . . . . . Fabricators . | . . . . . . . . . . . . . . . Repair Stations . | . . . . . . . . . . . . . . . Recycling Units 1 | . 1 . . . . . . . . . . . . . Tunnel 1 | . 1 . . . . . . . . . . . . . Scanalyzers . | . . . . . . . . . . . . . . . Garrison Access . | . . . . . . . . . . . . . . . Data Cores Recovered 4 | . . . 1 1 2 . . . . . . . . . Used 1 | . . . . . 1 . . . . . . . . . Hacking Detections 32 | . 1 2 5 1 8 8 1 . . . . 2 4 . Full Trace Events . | . . . . . . . . . . . . . . . Feedback Events . | . . . . . . . . . . . . . . . Feedback Blocked . | . . . . . . . . . . . . . . . Robot Schematics Acquired . | . . . . . . . . . . . . . . . Robots Built . | . . . . . . . . . . . . . . . Authchips . | . . . . . . . . . . . . . . . Time . | . . . . . . . . . . . . . . . Total Robot Build Rating . | . . . . . . . . . . . . . . . Part Schematics Acquired 4 | . . . . . . . . . . 4 . . . . Parts Built . | . . . . . . . . . . . . . . . Authchips . | . . . . . . . . . . . . . . . Time . | . . . . . . . . . . . . . . . Total Part Build Rating . | . . . . . . . . . . . . . . . Parts Repaired . | . . . . . . . . . . . . . . . Time . | . . . . . . . . . . . . . . . Parts Recycled . | . . . . . . . . . . . . . . . Recycled Matter . | . . . . . . . . . . . . . . . Retrieved Matter . | . . . . . . . . . . . . . . . Retrieved Components 7 | . . . . . 7 . . . . . . . . . Parts Scanalyzed . | . . . . . . . . . . . . . . . Part Schematics Acquired . | . . . . . . . . . . . . . . . Parts Damaged . | . . . . . . . . . . . . . . . Bothacking | -11 -10 -9 -8 -7 -6 -6 -5 -5 -5 -5 -4 -4 -3 -2 ------------ Run | Yrd Mat Mat Mat Fac Fac Ext Fac Upp Upp Zhi Pro Fac Res Res Used RIF Installer . | . . . . . . . . . . . . . . . Robots Hacked 1 | . . . . . . . . . . . . 1 . . Non-combat 1 | . . . . . . . . . . . . 1 . . Combat . | . . . . . . . . . . . . . . . Robot Hacks Applied 1 | . . . . . . . . . . . . 1 . . no_distress 1 | . . . . . . . . . . . . 1 . . Relay Couplers Released . | . . . . . . . . . . . . . . . Fabnet Peak Effective % . | . . . . . . . . . . . . . . . Robots Rewired 8 | . . . . . . 7 . . . . . 1 . . Allies Hacked . | . . . . . . . . . . . . . . . Hacks Repelled . | . . . . . . . . . . . . . . . Allies | -11 -10 -9 -8 -7 -6 -6 -5 -5 -5 -5 -4 -4 -3 -2 -------- Run | Yrd Mat Mat Mat Fac Fac Ext Fac Upp Upp Zhi Pro Fac Res Res Total Allies 20 | . . . . . . 19 . . . . . 1 . . Largest Group 13 | . . . . . . 13 . . . . . . . . Highest-Rated Group 355 | . . . . . . 355 . . . . . . . . Highest-Rated Ally 39 | . . . . . . 39 . . . . . . . . Total Orders . | . . . . . . . . . . . . . . . Ally Attacks 71 | . . . . . . 71 . . . . . . . . Total Damage 1178 | . . . . . . 1178 . . . . . . . . Kills 10 | . . . . . . 10 . . . . . . . . Allies Corrupted . | . . . . . . . . . . . . . . . Allies Melted . | . . . . . . . . . . . . . . . Intel | -11 -10 -9 -8 -7 -6 -6 -5 -5 -5 -5 -4 -4 -3 -2 ------- Run | Yrd Mat Mat Mat Fac Fac Ext Fac Upp Upp Zhi Pro Fac Res Res Active Infowar (turns) 4261 | . . . . . 466 . 574 308 574 221 234 694 969 221 Optics 1965 | . . . . . . . . . . . 81 694 969 221 Sensors 2167 | . . . . . . . 574 308 574 221 153 . 337 . Seismic 466 | . . . . . 466 . . . . . . . . . Jamming 40 | . . . . . . . . . . . . . . 40 Robot Analysis Total 4 | . . . . . . . . . . 4 . . . . Derelict Logs Recovered 5 | . . . . . . . . 1 1 . 3 . . . Drone Launches . | . . . . . . . . . . . . . . . Drone Recoveries . | . . . . . . . . . . . . . . . Exploration | -11 -10 -9 -8 -7 -6 -6 -5 -5 -5 -5 -4 -4 -3 -2 ------------- Run | Yrd Mat Mat Mat Fac Fac Ext Fac Upp Upp Zhi Pro Fac Res Res Turns Passed 10760 | 61 429 506 1202 843 2073 1468 574 308 574 221 459 694 969 379 Spaces Moved 6408 | 47 225 297 495 413 990 770 453 245 441 173 356 405 722 376 Core 581 | 13 . . . . . . . . . . 158 5 263 142 Treads 2384 | . . . . 173 990 460 . . . . . 307 454 . Legs 3111 | 34 225 297 495 240 . 310 453 245 441 173 198 . . . Wheels . | . . . . . . . . . . . . . . . Hover 272 | . . . . . . . . . . . . 33 5 234 Flight 60 | . . . . . . . . . . . . 60 . . Fastest Speed 36 | 50 120 120 120 160 156 120 122 122 122 120 50 40 50 36 Average Speed 132 | 110 138 137 166 177 165 142 122 122 122 121 94 119 110 52 Slowest Speed 400 | 150 190 190 190 190 240 400 122 122 122 122 350 145 250 200 Overloaded Moves . | . . . . . . . . . . . . . . . Propulsion Burnouts . | . . . . . . . . . . . . . . . Robots Hopped . | . . . . . . . . . . . . . . . Potential Cave-ins 8 | . . . . . . 8 . . . . . . . . Cave-ins Triggered . | . . . . . . . . . . . . . . . Teleports 1 | . . . . . . . . . . . 1 . . . Exploration Rate (%) 34 | 4 34 28 44 10 27 63 11 49 72 62 64 7 25 12 Regions Visited 14 Branch Regions 5 Pre-discovered Areas 2 | . 1 . . . . . . . 1 . . . . . Known Exits Taken 7 | . . . . . 1 . 1 1 1 1 1 . 1 . Unknown Exits Taken 7 | 1 1 1 1 1 . 1 . . . . . 1 . . Scrap Searched 5 | . . . . . . . . 1 3 . 1 . . . Spaces Dug 17 | . . . . 2 2 11 . . . . . . 2 . Terrain Destroyed 124 | . . . . 7 81 15 . . 1 . 8 5 7 . Melee . | . . . . . . . . . . . . . . . Projectile 54 | . . . . 7 14 15 . . . . 6 5 7 . AOE 67 | . . . . . 67 . . . . . . . . . Terrain Rammed . | . . . . . . . . . . . . . . . Walls Destroyed . | . . . . . . . . . . . . . . . Machines Disabled . | . . . . . . . . . . . . . . . Actions | -11 -10 -9 -8 -7 -6 -6 -5 -5 -5 -5 -4 -4 -3 -2 --------- Run | Yrd Mat Mat Mat Fac Fac Ext Fac Upp Upp Zhi Pro Fac Res Res Total 7938 | 53 303 368 719 491 1295 1019 476 252 461 185 410 563 854 489 Wait 610 | . 36 27 82 33 185 41 7 . 4 . 1 92 44 58 Move 6395 | 46 224 296 494 412 989 769 452 244 440 172 355 404 722 376 Hop . | . . . . . . . . . . . . . . . Pick Up 100 | 2 9 6 14 11 9 13 6 2 2 4 3 9 7 3 Fast Attach 82 | 5 2 5 6 3 16 3 . . . 2 4 9 11 16 Attach 54 | . . 1 4 6 1 11 2 . 3 1 8 7 7 3 Detach 10 | . . . . . . 1 . . . 1 . 2 5 1 Swap 47 | . 4 4 15 1 6 6 3 1 1 1 2 1 2 . Drop 107 | . 3 12 23 8 19 7 6 3 1 4 2 5 12 2 Fire 391 | . 25 17 81 17 70 65 . 2 10 . 35 25 44 . Melee 31 | . . . . . . . . . . . . 1 . 30 Ram . | . . . . . . . . . . . . . . . Kick . | . . . . . . . . . . . . . . . Crush . | . . . . . . . . . . . . . . . Escape Stasis . | . . . . . . . . . . . . . . . Rewire 111 | . . . . . . 103 . . . . . 8 . . Trap . | . . . . . . . . . . . . . . . Miscellaneous . | . . . . . . . . . . . . . . . Route ------- -11/Scrapyard -10/Materials (discovered 2 exits: *Mat / [*Min]) -9/Materials (discovered 2 exits: *Mat / [*Sto]) -8/Materials -7/Factory -6/Factory (discovered 4 exits: Low x2 / *Ext x2) -6/Extension (discovered 2 exits: *Fac / [*Cet]) -5/Factory (discovered 2 exits: *Fac / *Upp) -5/Upper Caves -5/Upper Caves (discovered 2 exits: *Fac / *Zhi) -5/Zhirov -4/Proximity Caves -4/Factory -3/Research (discovered 2 exits: *Res / *Tes) -2/Research History --------- Turn | Location | Event 8 | -11/Scrapyard | Discovered new exit (range 15) 62 | -11/Scrapyard | Entered Materials 149 | -10/Materials | Discovered new exit (range 10) 262 | -10/Materials | Discovered new exit (range 16) 316 | -10/Materials | Build established: Mutant 491 | -10/Materials | Entered another Materials area 491 | -9/Materials | Evolved 2 slots: Propulsion x1, Utility x1 599 | -9/Materials | Discovered new exit (range 5) 943 | -9/Materials | Build established: Scavenger-Mutant 972 | -9/Materials | Discovered new exit (range 11) 997 | -9/Materials | Entered another Materials area 997 | -8/Materials | Evolved 2 slots: Propulsion x1, Utility x1 2170 | -8/Materials | Garrison activated, responded to threat 2182 | -8/Materials | Discovered new exit (range 10) 2199 | -8/Materials | Entered Factory 2199 | -7/Factory | Evolved 2 slots: Utility x2 2905 | -7/Factory | Discovered new exit (range 14) 3016 | -7/Factory | Build established: Mutant 3042 | -7/Factory | Entered another Factory area 3042 | -6/Factory | Evolved 2 slots: Power x1, Utility x1 3954 | -6/Factory | Build established: Scavenger-Mutant 4639 | -6/Factory | Identified exit to Lower Caves 4639 | -6/Factory | Identified exit to Extension 5115 | -6/Factory | Entered Extension 5207 | -6/Extension | Rescued a captive Derelict 5275 | -6/Extension | Door terminal overloaded 5275 | -6/Extension | Rescued a captive Derelict 5324 | -6/Extension | Rescued a captive Derelict 5324 | -6/Extension | Rescued a captive Derelict 5333 | -6/Extension | Rescued a captive Derelict 5334 | -6/Extension | Rescued a captive Derelict 5354 | -6/Extension | Rescued a captive Derelict 5355 | -6/Extension | Rescued a captive Derelict 5379 | -6/Extension | Rescued a captive Derelict 5380 | -6/Extension | Rescued a captive Derelict 5638 | -6/Extension | Rescued a captive Derelict 5672 | -6/Extension | Rescued a captive Derelict 5673 | -6/Extension | Rescued a captive Derelict 5739 | -6/Extension | Energy Cycler disabled 5739 | -6/Extension | Rescued a captive Derelict 5739 | -6/Extension | Rescued a captive Derelict 5740 | -6/Extension | Rescued a captive Derelict 5741 | -6/Extension | Rescued a captive Derelict 5805 | -6/Extension | Lost 8 allies 5965 | -6/Extension | Spotted B-75 Beast 6018 | -6/Extension | Lost 10 allies 6099 | -6/Extension | Destroyed B-75 Beast 6154 | -6/Extension | Lost 10 parts (1p3n4u2w) 6535 | -6/Extension | Discovered new exit (range 10) 6536 | -6/Extension | Discovered new exit (range 6) 6583 | -6/Extension | Entered Factory 6583 | -5/Factory | Evolved 2 slots: Utility x2 6645 | -5/Factory | Discovered new exit (range 5) 6645 | -5/Factory | Discovered new exit (range 15) 6651 | -5/Factory | Identified exit to Factory 6665 | -5/Factory | Identified exit to Upper Caves 7157 | -5/Factory | Entered Upper Caves 7427 | -5/Upper Caves | Learned Factory stockpile data 7456 | -5/Upper Caves | Discovered new exit (range 6) 7462 | -5/Upper Caves | Identified exit to Upper Caves 7465 | -5/Upper Caves | Entered another Upper Caves area 7523 | -5/Upper Caves | Attracted the attention of an 0b10 checkpoint 7554 | -5/Upper Caves | Discovered exit to Factory (range 7) 7945 | -5/Upper Caves | Lost 3 parts (1u2w) 8023 | -5/Upper Caves | Discovered new exit (range 11) 8036 | -5/Upper Caves | Identified exit to Zhirov 8039 | -5/Upper Caves | Entered Zhirov 8039 | -5/Zhirov | Discovered new exit (range 3) 8061 | -5/Zhirov | Met Zhirov 8108 | -5/Zhirov | Zhirov requested help retrieving the SGEMP Prototype 8134 | -5/Zhirov | Found Alien Artifact 8134 | -5/Zhirov | Identified Integrated Dissipator 8134 | -5/Zhirov | Installed Integrated Dissipator, increased core heat dissipation (+20) 8150 | -5/Zhirov | Found Alien Artifact 8259 | -5/Zhirov | Identified exit to Proximity Caves 8260 | -5/Zhirov | Entered Proximity Caves 8265 | -4/Proximity Caves | Learned Research stockpile data 8444 | -4/Proximity Caves | Lost 10 parts (3n5u2w) 8625 | -4/Proximity Caves | Identified Transdimensional Reconstructor 8625 | -4/Proximity Caves | Warped through subspace 8633 | -4/Proximity Caves | Attracted the attention of an 0b10 checkpoint 8642 | -4/Proximity Caves | Core integrity fell below 50% 8660 | -4/Proximity Caves | Learned Research emergency access door positions 8663 | -4/Proximity Caves | Learned 8 Research zone layouts 8675 | -4/Proximity Caves | Lost 9 parts (1p3n2u3w) 8675 | -4/Proximity Caves | Spotted B-86 Titan 8716 | -4/Proximity Caves | Discovered exit to Factory (range 5) 8719 | -4/Proximity Caves | Entered Factory 8719 | -4/Factory | Evolved 2 slots: Utility x2 9194 | -4/Factory | Spotted B-86 Titan 9367 | -4/Factory | Discovered new exit (range 13) 9413 | -4/Factory | Entered Research 9413 | -3/Research | Evolved 2 slots: Utility x2 9414 | -3/Research | Identified exit to Research 9414 | -3/Research | Identified exit to Testing 9808 | -3/Research | Spotted B-86 Titan 10154 | -3/Research | Lost 3 parts (1p1n1u) 10207 | -3/Research | Lost 4 parts (1n3u) 10252 | -3/Research | Lost 4 parts (1p2n1w) 10360 | -3/Research | System corruption reached 10% 10362 | -3/Research | Core integrity fell below 50% 10381 | -3/Research | Spotted B-86 Titan 10382 | -3/Research | Entered another Research area 10382 | -2/Research | Evolved 2 slots: Propulsion x2 10409 | -2/Research | Lost 5 parts (1n3u1w) 10444 | -2/Research | Spotted B-90 Cyclops 10596 | -2/Research | Core integrity fell below 50% 10599 | -2/Research | Lost 6 parts (1p2n3u) 10604 | -2/Research | System corruption reached 10% 10617 | -2/Research | Core integrity fell below 20% 10646 | -2/Research | Lost 4 parts (3u1w) 10761 | -2/Research | Destroyed by S-43 Plague with Heavy Machine Gun Last Messages --------------- 10684_ System corrupted: Matter fused (-9). 10684_ P-80 Master destroyed. 10687_ Acquired 24 matter. 10691_ Acquired Imp. Antigrav System. 10693_ Acquired 10 matter. 10696_ Acquired Adv. Target Analyzer. 10701_ System corrupted: Matter fused (-5). 10713_ Acquired 15 matter. 10720_ System corrupted: Component data lost. 10736_ Force Lance destroyed. 10738_ S-43 Plague destroyed. 10742_ Imp. Antigrav System destroyed. 10744_ S-43 Plague destroyed. 10744_ R-10 Processor collects Xenon Bombardment Thruster. 10747_ R-10 Processor collects Sml. Battery. 10749_ Imp. Antigrav System destroyed. 10759_ S-43 Plague suffers critical hit (Impale). 10759_ Destroyed Xenon Bombardment Thruster. Map ----- +----------------------------------------------------+ | ?????????????????????????????????????????????????? | | ?????????????????????????????????????????????????? | | ?????????????????????????????????????????????????? | | ?????????????????????????????????????????????????? | | ?????????????????????????????????????????????????? | | ?????????????##??????????????????????????????????? | | ?????????#### #####??????????????###????#######??? | | ????????? #??????????????# ?""" #??? | | ????????? #??????????????# ""R" #??? | | ????????? !!???????????????# "" " ! #??? | | ???????? ! ???????????????# #??? | | ????????""" ????????????????# #??? | | ????????""" ????????????????# #??? | | ?????????"" ?????????????????# #??? | | ?????????"" ?????????????????# """ """ #??? | | ??????????" ??????????????????# """ """ #??? | | ??????????" ??????????????????# """ """ ????? | | ??????????? ???????????????????? ??????? | | ??????????? ?????????????????????? ????????? | | ?????????#+#+#########################/#+##??????? | | ?????????# ! [ ######## | | ?????????# *! ^ | | ?????????# !|! ^ | | ?????????# %%=! ######## | | ?????????# ###s##################??????? | | ########## ] #=s%@[ #?????????????????? | | # """ # ""Y" #%[|!* #?????????????????? | | #! """ # """"" #**%! #?????????????????? | | # """ # # [ ] #?????????????????? | | # # # #?????????????????? | | # + # #?????????????????? | | # # ######## |/ #?????????????????? | | # # #??????# #?????????????????? | | + ! # #??????###########?????????????????? | | # !# #??????????????????????????????????? | | ########## #??????????????????????????????????? | | ?????????# #??????????????????????????????????? | | ?????????# #??????????????????????????????????? | | ?????????# #??????????????????????????????????? | | ?????????# #??????????????????????????????????? | | ########## #??????????????????????????????????? | | # #??????????????????????????????????? | | # #??????????????????????????????????? | | ! # #??????????????????????????????????? | | + #??????????????????????????????????? | | # #??????????????????????????????????? | | # #??????????????????????????????????? | | # ########???????????????????????????? | | # #???????????????????????????? | | ########## #???????????????????????????? | +----------------------------------------------------+ Best States ------------- Heat Dissipation 109 Energy Generation 37 Energy Capacity 395 Matter Stores 328 Matter Capacity 350 Sight Range 22 Robot Scan Range 16 Terrain Scan Density 10 Jamming Range 16 Additional Mass Support 9 Armor Coverage 600 Resistance: TH 30 Core Shielding 20 Weapon Shielding 66 Evasion (%) 80 Targeting Accuracy 14 Target Analysis 12 Recoil Reduction 4 Particle Charging 30 Kinecelleration 40 Offensive Hacking 26 Item Schematics ----------------- Assault Drone Bay | -5/Zhirov | Free Exp. Heat Sink | -5/Zhirov | Free Exp. Optical Array | -5/Zhirov | Free Imp. Arc Thrower | -5/Zhirov | Free Robot Schematics ------------------ None Fabricated ------------ Nothing Repaired ---------- Nothing Alien Tech Used ----------------- Integrated Dissipator Transdimensional Reconstructor Achievements -------------- Just Shoot The Terminal Challenges ------------ None Game ------ Seed CannonElectronWell Manual? 0 Play Time 01:44:10 Cumulative 78.5 hours Start 2025.05.07 @ 20:26:15 End 2025.05.07 @ 22:21:47 Sessions 1 Manual Loads 0 Difficulty Rogue Special Mode None Game No. 81 Rogue 81 Adventurer 0 Explorer 0 Win Type - Total 1 Types 1/0/0/0/0/0/0/0/0/0 Lore% 39 Gallery% 44 Achievement% 42 Wizard Run 0 Options --------- Layout 1 ASCII 0 Keyboard 1 Movement Numpad Keybinds 0 Fullscreen 1 Font 24/Smallcaps Map View 50x35 Zoom Use 0% Tactical HUD 1 Map Filters NONE Filters NONE Steam 1 RUN: 82cf9a2b-84e1-426e-9993-842c70487763